bitfinex-derivatives/quotes_ETHF0:USTF0_20250909
["timestamp","ask_amount","ask_price","bid_price","bid_amount"]
[1757419546600,0.1206,4348.0,4347.4,0.7125]
[1757419546898,0.5061,4347.8,4347.7,3.929]
[1757419547894,0.7108,4347.8,4347.7,3.4498]
[1757419549297,0.7108,4347.8,4347.7,3.2078]
[1757419549501,0.7108,4347.8,4347.7,3.6645]
[1757419550090,0.7108,4347.8,4347.7,3.8757]
[1757419550286,0.7108,4347.8,4347.7,4.171]
[1757419550593,0.7108,4347.8,4347.7,3.8757]
[1757419550892,0.7108,4347.8,4347.7,3.6337]
[1757419551200,4.9408,4347.8,4347.0,0.1256]
[1757419551496,4.9408,4347.8,4345.7,33.136]
[1757419551497,3.2078,4347.3,4346.0,3.6113]
[1757419551697,3.2078,4347.3,4346.2,0.2953]
[1757419551903,0.23006001,4347.2,4346.2,0.51]
[1757419552396,0.23006001,4347.1,4346.2,0.51]
[1757419552594,0.23006001,4347.2,4346.2,0.51]
[1757419553193,3.2078,4347.3,4346.4,0.2953]
[1757419553394,3.2078,4347.3,4346.6,0.2953]
[1757419553598,3.2078,4347.3,4346.7,0.51]
[1757419553792,3.2078,4347.3,4346.9,0.2953]
[1757419554094,3.2078,4347.3,4347.1,0.2953]
[1757419554303,3.2078,4347.3,4347.2,0.5373]
[1757419554997,7.2078,4347.3,4347.2,0.242]
[1757419555701,3.2078,4347.3,4347.2,0.752]
[1757419556701,3.2078,4347.3,4347.2,0.9632]
[1757419557999,3.2078,4347.8,4347.7,0.4259]
[1757419558200,3.2078,4347.8,4347.7,0.9632]
[1757419560205,3.2078,4347.8,4347.7,0.51]
[1757419560501,3.2078,4347.8,4347.7,0.5373]
[1757419561796,7.2078,4347.8,4347.7,0.242]
[1757419562103,7.73725386,4347.8,4347.7,0.242]
[1757419563800,7.73725386,4347.8,4347.2,0.2953]
[1757419564006,3.2078,4347.3,4346.5,0.3403]
[1757419564206,0.52952596,4347.2,4346.6,0.4567]
[1757419564509,3.2078,4347.3,4346.7,0.51]
[1757419564697,0.52951719,4347.2,4346.8,0.2953]
[1757419564896,3.2078,4347.3,4346.8,0.2147]
[1757419565102,0.52951703,4347.2,4346.9,0.2953]
[1757419565303,3.2078,4347.3,4346.9,0.2953]
[1757419565603,0.52950027,4347.2,4346.9,0.2953]
[1757419565809,3.2078,4347.3,4346.7,0.2953]
[1757419566109,3.2078,4347.3,4346.6,0.242]
[1757419566110,0.52950088,4347.2,4347.1,0.2112]
[1757419566412,3.2078,4347.3,4347.2,0.7212]
[1757419567307,3.2078,4347.3,4347.2,0.9622]
[1757419569503,3.2078,4347.8,4347.7,0.4259]
[1757419569703,3.2078,4347.8,4347.7,0.7212]
[1757419570400,3.2078,4348.3,4348.0,0.1256]
[1757419570604,3.2078,4348.3,4348.2,0.7212]
[1757419570805,3.2078,4348.3,4348.1,0.241]
[1757419571007,3.2078,4348.3,4348.2,0.241]
[1757419571403,3.2078,4348.3,4348.2,0.5363]
[1757419572706,3.2078,4348.3,4348.2,0.751]
[1757419572902,3.2078,4348.3,4348.2,0.9622]
[1757419574005,0.17,4348.9,4348.8,0.4259]
[1757419574204,0.17,4348.9,4348.8,0.9622]
[1757419574808,0.17,4348.9,4348.8,0.5363]
[1757419575310,0.17,4348.9,4348.8,0.7212]
[1757419575703,0.17,4348.9,4348.8,0.241]
[1757419576110,0.69884355,4348.9,4348.8,0.241]
[1757419576310,4.69884355,4348.9,4348.5,0.241]
[1757419576510,3.2078,4348.6,4348.5,0.241]
[1757419576911,3.2078,4348.6,4348.5,0.5331]
[1757419577112,3.2078,4348.6,4348.5,0.6573]
[1757419577413,3.2078,4348.6,4348.5,0.241]
[1757419578115,3.2078,4348.6,4348.5,0.6573]
[1757419578513,3.2078,4348.6,4348.5,0.8524]
[1757419579016,3.2078,4348.6,4348.5,0.6573]
[1757419579515,3.73670377,4348.6,4348.5,0.8524]
[1757419579718,3.73670377,4348.6,4348.5,0.6573]
[1757419579915,3.73670377,4348.6,4348.5,0.4163]
[1757419580116,3.73670377,4348.6,4348.3,0.241]
[1757419580415,3.2078,4348.6,4348.3,0.241]
[1757419580715,3.2078,4348.6,4348.5,0.8265]
[1757419581109,0.17,4348.9,4348.5,0.1242]
[1757419581306,0.17,4348.9,4348.7,0.2921]
[1757419581506,0.17,4348.9,4348.8,0.7023]
[1757419581709,0.17,4348.9,4348.8,0.2921]
[1757419582212,0.69893325,4348.9,4348.8,0.4872]
[1757419582410,0.17,4348.9,4348.8,0.4872]
[1757419583211,0.69897878,4348.9,4348.8,0.4872]
[1757419583613,0.69897878,4348.9,4348.8,0.7023]
[1757419583614,0.17,4348.9,4348.8,0.7023]
[1757419589813,0.17,4348.9,4348.8,4.7023]
[1757419590014,3.2078,4349.1,4349.0,0.1242]
[1757419590212,3.2078,4349.1,4349.0,0.8265]
[1757419590809,3.2078,4349.8,4349.5,0.1242]
[1757419591021,3.4166,4349.8,4349.7,0.7023]
[1757419591317,11.22191936,4351.0,4349.7,0.7023]
[1757419591318,3.2078,4350.3,4349.7,0.4102]
[1757419591622,0.6306,4351.0,4350.2,3.2078]
[1757419591817,0.6306,4351.0,4350.9,3.2078]
[1757419592117,0.1194,4350.5,4350.4,3.2078]
[1757419592320,0.829,4350.5,4350.4,3.4488]
[1757419592617,0.4218,4350.5,4350.4,3.4488]
[1757419592818,0.3282,4351.0,4350.4,3.4488]
[1757419593016,0.2088,4350.8,4350.4,3.4488]
[1757419593222,0.1194,4350.5,4350.4,3.4488]
[1757419593512,0.4218,4350.5,4350.4,3.4488]
[1757419596117,0.4218,4350.5,4350.4,3.2078]
[1757419596417,0.829,4350.5,4350.4,3.4488]
[1757419598217,0.829,4350.5,4350.4,0.241]
[1757419605825,0.5266,4350.5,4349.9,3.2078]
[1757419606019,0.4218,4350.0,4349.9,3.2078]
[1757419606224,0.4218,4350.0,4349.9,3.4488]
[1757419606524,0.6306,4350.0,4349.9,3.4488]
[1757419607420,0.4218,4350.0,4349.9,3.4488]
[1757419607819,0.1194,4351.0,4350.1,0.3063]
[1757419608019,0.2156,4350.6,4350.5,3.9201]
[1757419608322,0.2156,4350.6,4350.5,4.1611]
[1757419609222,0.4303,4350.6,4350.5,3.8548]
[1757419609526,0.4303,4350.6,4350.5,0.647]
[1757419609826,0.7434,4350.6,4350.5,0.647]
[1757419611628,0.7434,4350.6,4350.5,0.406]
[1757419611828,0.7434,4350.6,4350.5,0.647]
[1757419612537,0.7434,4350.6,4350.5,0.9533]
[1757419616334,0.7434,4350.6,4350.5,0.406]
[1757419616538,0.7434,4350.6,4350.5,0.4517]
[1757419616836,0.7434,4350.6,4350.5,0.647]
[1757419617034,0.7434,4350.6,4350.5,0.9533]
[1757419617538,0.7434,4350.6,4350.5,0.647]
[1757419618336,0.4303,4350.1,4350.0,3.4185]
[1757419618541,0.7434,4350.1,4350.0,0.241]
[1757419618940,0.1259,4350.0,4349.7,33.128]
[1757419619143,0.7434,4349.8,4349.7,33.128]
[1757419619435,0.7434,4349.8,4349.7,33.369]
[1757419619630,0.7434,4349.8,4349.7,33.6753]
[1757419620539,0.1259,4350.5,4349.9,0.406]
[1757419620741,0.74189494,4350.4,4350.3,0.7123]
[1757419620937,0.74189494,4350.4,4350.3,0.9533]
[1757419621241,1.05499494,4350.4,4350.3,0.9533]
[1757419621544,0.5287,4350.4,4350.3,0.9533]
[1757419621840,0.7434,4350.4,4350.3,0.647]
[1757419622040,0.3131,4350.3,4350.1,3.2078]
[1757419622248,0.7434,4350.2,4350.1,3.2078]
[1757419622437,0.7434,4350.2,4350.1,3.8548]
[1757419622640,0.7434,4350.2,4350.1,4.1611]
[1757419622835,0.7434,4350.2,4350.1,3.8548]
[1757419623342,0.7434,4350.2,4350.1,4.1611]
[1757419623646,0.5287,4350.2,4350.1,4.1611]
[1757419624443,0.5287,4350.2,4350.1,3.9201]
[1757419624642,0.5287,4350.2,4350.1,4.1611]
[1757419625338,0.5287,4350.2,4350.1,3.9201]
[1757419625538,0.5287,4350.2,4350.1,4.1611]
[1757419625736,0.7434,4350.2,4350.1,4.1611]
[1757419626637,0.7434,4350.2,4350.1,3.8548]
[1757419626942,0.7434,4350.2,4350.1,3.6595]
[1757419627444,0.7434,4350.2,4350.1,3.8548]
[1757419627637,0.7434,4350.2,4350.1,4.1611]
[1757419628333,0.7434,4350.4,4350.3,0.2107]
[1757419628540,0.7434,4350.4,4350.3,0.241]
[1757419629246,0.7434,4350.4,4350.3,0.4517]
[1757419630649,0.7434,4349.8,4349.7,33.128]
[1757419631043,0.7434,4349.8,4349.7,33.369]
[1757419632543,0.7434,4349.8,4349.7,33.128]
[1757419632743,0.4303,4348.8,4348.7,0.517]
[1757419632942,0.3131,4349.4,4348.8,0.3063]
[1757419633144,0.7434,4349.4,4349.3,0.2107]
[1757419633348,1.26961684,4349.4,4349.3,0.4517]
[1757419633741,1.26961684,4349.4,4349.3,0.647]
[1757419633942,0.5287,4349.4,4349.3,0.9533]
[1757419634241,3.5209,4349.6,4349.4,0.3063]
[1757419634442,3.7365,4349.6,4349.5,0.9533]
[1757419635147,3.2078,4349.6,4349.5,1.0522]
[1757419635544,0.439,4350.0,4349.5,0.7459]
[1757419635545,0.1259,4350.0,4349.5,0.7459]
[1757419635746,0.52571098,4349.9,4349.7,0.7123]
[1757419636049,0.5287,4350.0,4349.9,0.7123]
[1757419636851,0.8697,4350.0,4349.9,0.7123]
[1757419637051,0.5287,4350.0,4349.9,0.7123]
[1757419637351,3.2078,4350.7,4349.9,0.406]
[1757419637548,1.02912507,4350.4,4350.3,0.712]
[1757419637749,0.5034,4350.4,4350.3,0.953]
[1757419638050,0.718,4350.4,4350.3,0.953]
[1757419638244,0.718,4350.4,4350.3,0.647]
[1757419638550,0.718,4350.4,4350.3,0.4498]
[1757419638744,0.3001,4350.3,4349.7,3.5138]
[1757419639050,0.3001,4350.4,4349.8,0.953]
[1757419639238,0.4179,4350.4,4350.3,0.2088]
[1757419639442,0.4179,4350.4,4350.3,0.4498]
[1757419639443,0.718,4350.4,4350.3,0.4498]
[1757419640953,0.5034,4350.4,4350.3,0.953]
[1757419643552,0.8439,4351.0,4350.9,0.2088]
[1757419643744,0.8439,4351.0,4350.5,0.306]
[1757419643745,1.36974485,4351.0,4350.7,0.241]
[1757419643946,0.52584485,4350.9,4350.8,0.2088]
[1757419644145,0.94374485,4350.9,4350.8,0.2088]
[1757419644649,1.24384485,4350.9,4350.8,0.2088]
[1757419647247,1.24384485,4350.9,4350.8,0.406]
[1757419647754,1.24384485,4350.9,4350.8,0.712]
[1757419649254,0.718,4350.9,4350.8,0.712]
[1757419649456,1.24391655,4350.9,4350.8,0.712]
[1757419651653,1.02931655,4350.9,4350.8,0.712]
[1757419655555,0.5034,4350.9,4350.8,0.712]
[1757419655753,0.3001,4351.2,4350.9,0.306]
[1757419655955,0.718,4351.2,4351.1,0.712]
[1757419656261,1.24345073,4351.2,4351.1,0.406]
[1757419656456,1.02885073,4351.2,4351.1,0.712]
[1757419656658,0.82555073,4351.2,4351.1,0.712]
[1757419657358,0.82538766,4351.2,4351.1,0.712]
[1757419657554,0.3001,4351.4,4351.1,0.712]
[1757419657759,0.3001,4351.4,4351.3,0.406]
[1757419658062,0.3001,4351.4,4351.3,0.953]
[1757419658362,0.6297,4352.0,4351.9,0.712]
[1757419658560,0.8443,4352.0,4351.9,0.2088]
[1757419658857,0.718,4351.9,4351.8,3.2078]
[1757419659056,1.24309352,4351.9,4351.8,0.24]
[1757419659260,0.3001,4351.8,4350.9,36.6258]
[1757419659458,0.8443,4351.0,4350.9,36.6258]
[1757419659963,0.8443,4351.0,4350.9,36.8658]
[1757419661157,0.8443,4351.0,4350.9,36.5598]
[1757419661557,0.5034,4351.0,4350.9,36.8658]
[1757419661758,0.8443,4351.5,4351.4,0.406]
[1757419662057,0.8443,4351.5,4351.4,0.646]
[1757419662453,0.8443,4351.5,4351.4,0.406]
[1757419662762,0.8443,4351.5,4351.4,0.646]
[1757419663265,0.8443,4351.5,4351.4,0.952]
[1757419664164,0.8443,4351.5,4351.4,4.1598]
[1757419665765,0.8443,4351.5,4351.4,3.4166]
[1757419665966,0.8443,4351.5,4351.4,0.4488]
[1757419667068,0.8443,4351.5,4351.4,0.6615]
[1757419667269,0.8443,4351.5,4351.4,0.9746]
[1757419669169,0.5034,4351.5,4351.4,0.9746]
[1757419670458,0.6995,4351.5,4351.4,0.9746]
[1757419671966,0.5034,4351.5,4351.4,0.9746]
[1757419672658,0.3001,4351.5,4351.4,0.9746]
[1757419673560,0.3001,4351.5,4351.4,4.1824]
[1757419674270,0.1263,4352.0,4351.4,4.1824]
[1757419674471,0.3365,4352.0,4351.9,0.4078]
[1757419674667,0.5326,4352.0,4351.9,0.9609]
[1757419675171,0.8508,4352.0,4351.9,0.9609]
[1757419675472,0.8508,4352.0,4351.9,0.6478]
[1757419675866,0.5284,4352.0,4351.9,0.9609]
[1757419676162,0.8465,4352.0,4351.9,0.4078]
[1757419676370,0.8465,4352.0,4351.9,0.24]
[1757419677358,0.8465,4352.0,4351.9,0.4351]
[1757419678072,0.8465,4352.0,4351.9,0.24]
[1757419679367,1.37230783,4352.0,4351.9,0.24]
[1757419682068,1.37230783,4352.0,4351.9,0.5577711]
[1757419682972,1.37230783,4352.0,4351.9,0.7528711]
[1757419683174,1.37230783,4352.0,4351.9,1.2786711]
[1757419683469,1.05420783,4352.0,4351.9,1.2786711]
[1757419683871,0.3182,4352.4,4351.9,4.1733711]
[1757419684173,1.25066453,4352.3,4352.2,0.4078]
[1757419684370,1.25066453,4352.3,4352.2,0.3177711]
[1757419685665,1.25066453,4352.3,4352.2,0.31796916]
[1757419686570,1.25066453,4352.3,4352.2,0.51306916]
[1757419686878,1.25066453,4352.3,4352.2,0.72576916]
[1757419687075,1.25066453,4352.3,4352.2,1.03886916]
[1757419687779,0.52616453,4352.3,4352.2,1.03886916]
[1757419690774,3.3341,4353.0,4352.5,0.4078]
[1757419690976,1.25063668,4352.9,4352.8,0.4078]
[1757419691167,1.25063668,4352.9,4352.8,1.03886916]
[1757419693278,0.7245,4352.9,4352.8,1.27886916]
[1757419693473,0.7245,4352.9,4352.8,0.96576916]
[1757419694779,0.7245,4352.9,4352.8,0.72576916]
[1757419694968,0.3182,4352.9,4352.8,1.27886916]
[1757419695570,0.3182,4353.4,4352.8,0.96576916]
[1757419695779,3.3298,4353.5,4353.4,0.1951]
[1757419695780,4.0543,4353.5,4353.4,0.1951]
[1757419695972,4.57962659,4353.5,4353.4,0.75306916]
[1757419696279,4.57962659,4353.5,4353.4,0.55796916]
[1757419696484,4.57962659,4353.5,4353.4,0.31796916]
[1757419696777,4.57962659,4353.5,4353.4,0.55796916]
[1757419700481,4.38352659,4353.5,4353.4,1.25196916]
[1757419700683,4.58832659,4353.5,4353.4,1.25196916]
[1757419700877,0.8552,4353.5,4353.4,1.25196916]
[1757419701272,0.5284,4353.5,4353.4,1.25196916]
[1757419703283,0.3182,4353.5,4353.4,1.25196916]
[1757419704777,0.122,4354.0,4353.4,0.95086916]
[1757419704977,0.7142,4353.9,4353.8,0.694]
[1757419705183,0.7142,4353.9,4353.8,1.25196916]
[1757419705484,0.7142,4353.9,4353.8,0.95086916]
[1757419706583,0.7142,4353.9,4353.8,1.25196916]
[1757419713285,3.2078,4354.1,4353.8,1.25196916]
[1757419713591,0.8362,4354.5,4354.4,0.1956]
[1757419713782,1.36086592,4354.5,4354.4,0.75356916]
[1757419713986,0.8362,4354.5,4354.4,1.25196916]
[1757419714290,0.8362,4354.5,4354.4,0.55796916]
[1757419714490,1.36082629,4354.5,4354.4,0.55796916]
[1757419714686,1.36082629,4354.5,4354.4,0.31796916]
[1757419714982,1.36082629,4354.5,4354.4,0.75356916]
[1757419715779,1.36082629,4354.5,4354.4,1.25196916]
[1757419715982,0.8362,4354.5,4354.4,1.25196916]
[1757419716481,0.5094,4354.5,4354.4,1.25196916]
[1757419717385,0.2958,4354.9,4354.4,0.95086916]
[1757419717695,3.4214,4355.1,4355.0,0.694]
[1757419717881,0.2136,4355.1,4355.0,1.25196916]
[1757419718081,0.5094,4355.1,4355.0,1.25196916]
[1757419718488,0.2136,4355.4,4355.3,0.3929]
[1757419718684,0.5094,4355.4,4355.3,1.01196916]
[1757419718891,0.7142,4355.4,4355.3,1.01196916]
[1757419719085,0.5094,4355.4,4355.3,1.01196916]
[1757419719792,0.7142,4355.4,4355.3,1.01196916]
[1757419720289,0.5094,4355.4,4355.3,1.01196916]
[1757419722089,0.2958,4355.4,4355.3,1.01196916]
[1757419723086,0.2958,4355.4,4355.3,0.694]
[1757419723291,0.2958,4355.4,4355.3,1.01473533]
[1757419723693,0.2958,4355.4,4355.3,1.25373533]
[1757419724600,0.2958,4355.9,4355.3,0.95263533]
[1757419724793,0.7142,4355.9,4355.8,0.1956]
[1757419724993,1.23793674,4355.9,4355.8,0.75533533]
[1757419725197,0.7142,4355.9,4355.8,0.75533533]
[1757419727298,0.5094,4355.9,4355.8,1.27023533]
[1757419727488,0.1259,4356.5,4355.8,0.95693533]
[1757419727691,1.2380159,4356.4,4356.3,0.211]
[1757419727894,0.7145,4356.4,4356.3,0.53173533]
[1757419728296,0.7145,4356.4,4356.3,0.77073533]
[1757419728489,0.7145,4356.4,4356.3,0.53173533]
[1757419728695,0.7145,4356.4,4356.3,0.77073533]
[1757419729598,1.23786721,4356.4,4356.3,0.77073533]
[1757419730398,1.23786721,4356.4,4356.3,0.53173533]
[1757419730600,1.23786721,4356.4,4356.3,0.77073533]
[1757419730806,1.23786721,4356.4,4356.3,0.32073533]
[1757419731002,1.23786721,4356.4,4356.3,0.55973533]
[1757419731499,1.23786721,4356.4,4356.3,0.32073533]
[1757419731699,1.23786721,4356.4,4356.3,0.49173533]
[1757419733105,1.23786721,4356.4,4356.3,0.70273533]
[1757419733302,1.23786721,4356.4,4356.3,0.53173533]
[1757419733507,1.23786721,4356.4,4356.3,0.77073533]
[1757419734596,1.23786721,4356.4,4356.3,0.77041946]
[1757419735506,0.7145,4356.4,4356.3,1.28531946]
[1757419737004,0.7145,4356.4,4356.3,0.97201946]
[1757419737203,0.7145,4356.4,4356.3,0.55941946]
[1757419737600,0.7145,4356.4,4356.3,0.32041946]
[1757419737800,1.23785731,4356.4,4356.3,0.55941946]
[1757419739102,0.52335731,4356.4,4356.3,1.28531946]
[1757419739303,0.514,4356.4,4356.3,1.28531946]
[1757419739617,1.03754337,4356.4,4356.3,1.28531946]
[1757419739809,1.23804337,4356.4,4356.3,1.04631946]
[1757419740011,1.23804337,4356.4,4356.3,0.97201946]
[1757419740322,0.52354337,4356.4,4356.3,1.28531946]
[1757419740613,0.7145,4356.9,4356.8,0.211]
[1757419740909,1.25149038,4356.9,4356.8,0.32041946]
[1757419741305,1.25149038,4356.9,4356.8,0.55941946]
[1757419741703,0.2005,4356.7,4356.6,0.239]
[1757419742008,0.7145,4356.7,4356.6,0.239]
[1757419742208,1.25149038,4356.7,4356.0,0.4301]
[1757419742401,0.4026,4356.2,4356.1,0.6516]
[1757419742607,0.7145,4356.2,4356.1,0.4126]
[1757419742900,1.25149038,4356.2,4356.1,0.9649]
[1757419743101,1.25149038,4356.2,4356.1,0.7259]
[1757419743305,1.25149038,4356.2,4356.1,0.9649]
[1757419743910,1.25149038,4356.2,4356.1,0.7633]
[1757419744308,0.5236,4356.0,4355.9,0.3133]
[1757419744506,1.37249038,4356.0,4355.9,0.239]
[1757419744905,1.37249038,4356.0,4355.9,0.7633]
[1757419745099,1.25149038,4356.0,4355.9,0.7259]
[1757419745305,1.37249038,4356.0,4355.9,0.239]
[1757419745509,1.37249038,4356.0,4355.8,33.074]
[1757419745706,0.84889038,4355.9,4355.8,33.074]
[1757419746012,0.84889038,4355.9,4355.8,33.313]
[1757419746411,0.84889038,4355.9,4355.8,33.6263]
[1757419746810,0.53699038,4355.9,4355.8,33.6263]
[1757419747011,0.7145,4356.2,4356.1,0.7259]
[1757419747213,1.25290866,4356.2,4356.1,0.7259]
[1757419747412,0.94100866,4356.2,4356.1,0.7259]
[1757419747816,0.53840866,4356.2,4356.1,0.7259]
[1757419748210,0.53840866,4356.2,4356.1,3.9337]
[1757419749712,0.2021,4356.9,4356.8,0.4126]
[1757419749915,0.2021,4356.9,4356.8,0.9649]
[1757419750214,1.25319914,4356.9,4356.8,0.9649]
[1757419750418,1.25319914,4356.9,4356.8,0.239]
[1757419750608,1.25319914,4356.9,4356.5,0.3133]
[1757419750808,0.7145,4356.6,4356.5,0.7259]
[1757419751012,0.94129914,4356.6,4356.5,1.0817]
[1757419751510,1.25319914,4356.6,4356.5,0.8427]
[1757419751709,1.25319914,4356.6,4356.5,1.0817]
[1757419751909,0.94129914,4356.6,4356.5,1.0817]
[1757419752413,0.74079914,4356.6,4356.5,1.0817]
[1757419752615,0.53869914,4356.6,4356.5,1.0817]
[1757419752919,0.7145,4356.9,4356.8,0.7259]
[1757419753125,0.3119,4356.8,4356.4,0.3133]
[1757419753318,0.7145,4356.5,4356.4,0.7259]
[1757419753520,0.54950561,4356.5,4356.4,0.9649]
[1757419753715,0.54950561,4356.5,4356.4,1.28543085]
[1757419753914,0.5124,4356.7,4356.6,0.4126]
[1757419754216,0.5124,4356.7,4356.6,1.04643085]
[1757419754217,1.26401804,4356.7,4356.6,1.04643085]
[1757419755621,1.26401804,4356.7,4356.6,1.28543085]
[1757419756228,0.95211804,4356.7,4356.6,1.28543085]
[1757419756628,0.54951804,4356.7,4356.6,1.28543085]
[1757419757130,1.28871804,4356.7,4356.6,1.28543085]
[1757419757329,1.28871804,4356.7,4356.6,1.04643085]
[1757419757530,1.28871804,4356.7,4356.6,1.28543085]
[1757419757936,1.28871804,4356.7,4356.6,1.08383085]
[1757419758233,1.28871804,4356.7,4356.6,0.84483085]
[1757419758426,1.28871804,4356.7,4356.6,0.77053085]
[1757419758635,0.75161804,4356.7,4356.6,1.28283085]
[1757419759726,1.28871804,4356.7,4356.6,1.28283085]
[1757419760335,1.28871804,4356.7,4356.6,1.04383085]
[1757419760533,1.28871804,4356.7,4356.6,0.55953085]
[1757419760937,1.28871804,4356.7,4356.6,0.32053085]
[1757419761138,1.28871804,4356.7,4356.6,1.07043085]
[1757419763435,1.28871804,4356.7,4356.6,1.26753085]
[1757419764037,0.96571804,4356.7,4356.6,1.26753085]
[1757419764639,1.28871804,4356.7,4356.6,1.26753085]
[1757419765535,1.28871804,4356.7,4356.6,1.07043085]
[1757419766638,1.28871804,4356.7,4356.6,1.26753085]
[1757419768645,1.28871804,4356.7,4356.6,0.55953085]
[1757419769040,1.28871804,4356.7,4356.6,1.07043085]
[1757419769542,1.28871804,4356.7,4356.6,0.32053085]
[1757419769750,5.97601936,4356.7,4356.6,0.32053085]
[1757419770044,5.97601936,4356.7,4356.4,0.239]
[1757419770045,0.1171,4356.5,4356.4,0.239]
[1757419770244,1.40581804,4356.5,4356.4,0.239]
[1757419770640,1.40581804,4356.5,4355.9,0.3152]
[1757419770942,0.8563,4356.0,4355.9,0.5109]
[1757419771144,1.40581804,4356.0,4355.9,0.7499]
[1757419772039,1.28871804,4356.0,4355.9,0.947]
[1757419772242,1.28871804,4356.0,4355.9,1.2632423]
[1757419773736,0.54951804,4356.0,4355.9,1.2632423]
[1757419774132,0.76519912,4356.3,4356.2,0.3928]
[1757419774339,1.08819912,4356.3,4356.2,1.2632423]
[1757419774538,0.56309912,4356.3,4356.2,1.2632423]
[1757419774736,3.2078,4357.1,4356.2,1.26305628]
[1757419774940,0.76426261,4357.0,4356.9,0.708]
[1757419775147,1.30136261,4357.0,4356.9,1.26305628]
[1757419776240,1.30136261,4357.0,4356.9,1.36040707]
[1757419778646,0.76426261,4357.0,4356.9,1.36034156]
[1757419779038,1.30136261,4357.0,4356.9,1.36034156]
[1757419779447,0.97836261,4357.0,4356.9,1.26299077]
[1757419779748,0.76426261,4357.0,4356.9,1.36091888]
[1757419780947,0.56216261,4357.0,4356.9,1.36091888]
[1757419783750,0.97836261,4357.0,4356.9,1.36091888]
[1757419784052,1.30136261,4357.0,4356.9,1.36091888]
[1757419784251,0.97836261,4357.0,4356.9,1.36091888]
[1757419784454,0.76426261,4357.0,4356.9,1.36091888]
[1757419786051,1.08726261,4357.0,4356.9,1.36091888]
[1757419786253,0.56216261,4357.0,4356.9,1.36091888]
[1757419786951,0.76426261,4357.0,4356.9,1.12191888]
[1757419787450,0.76426261,4357.0,4356.9,1.35991888]
[1757419787646,0.76426261,4357.0,4356.9,1.12191888]
[1757419787841,0.76426261,4357.0,4356.9,1.35991888]
[1757419788044,0.56216261,4357.0,4356.9,1.35991888]
[1757419788948,0.75756261,4357.0,4356.9,1.35991888]
[1757419789155,1.05746261,4357.0,4356.9,1.35991888]
[1757419789854,0.75756261,4357.0,4356.9,1.35991888]
[1757419790240,0.75756261,4357.0,4355.9,0.3196]
[1757419790241,0.1354,4356.9,4355.9,0.3196]
[1757419790556,0.5252,4356.1,4356.0,0.99718068]
[1757419790948,1.08736261,4356.1,4356.0,0.99718068]
[1757419791250,0.95196261,4356.1,4356.0,0.8862]
[1757419792052,0.95196261,4356.1,4356.0,1.0981]
[1757419793453,0.95196261,4356.1,4356.0,1.12961535]
[1757419793952,0.75756261,4356.1,4356.0,1.12961535]
[1757419794151,0.23896261,4356.1,4356.0,1.12961535]
[1757419794454,3.8975,4357.4,4357.3,0.205]
[1757419794656,3.8975,4357.4,4357.3,0.9745]
[1757419795347,3.8975,4357.4,4357.3,0.238]
[1757419795553,3.8975,4357.4,4357.3,0.26951535]
[1757419795749,3.8975,4357.4,4357.3,1.00601535]
[1757419798057,3.5976,4357.4,4357.3,1.00601535]
[1757419798756,3.8975,4357.4,4357.3,1.00601535]
[1757419799049,3.8975,4357.4,4357.3,0.03151535]
[1757419799255,3.8975,4357.4,4357.3,0.26951535]
[1757419799751,3.8975,4357.4,4357.3,0.03151535]
[1757419799952,3.8975,4357.4,4357.3,0.26951535]
[1757419800554,3.8975,4357.4,4357.3,0.76801535]
[1757419800749,0.3898,4357.4,4357.3,1.00601535]
[1757419800954,0.1954,4357.4,4357.3,1.00601535]
[1757419801252,3.8975,4357.4,4357.3,0.03151535]
[1757419801459,3.8975,4357.4,4357.3,0.26951535]
[1757419802151,0.3898,4357.4,4357.3,1.00601535]
[1757419802356,0.3898,4357.4,4357.3,1.32831316]
[1757419802754,3.8975,4357.4,4357.3,1.32831316]
[1757419802955,3.8975,4357.4,4357.3,1.11641316]
[1757419803459,3.8975,4357.4,4357.3,0.59181316]
[1757419804661,3.8975,4357.4,4357.3,1.11641316]
[1757419804863,3.5976,4357.4,4357.3,1.32831316]
[1757419805157,3.8975,4357.4,4357.3,1.32831316]
[1757419805363,3.5976,4357.4,4357.3,1.32831316]
[1757419805862,0.3898,4357.4,4357.3,1.32831316]
[1757419806363,1.25206857,4357.4,4357.3,1.32831316]
[1757419806760,0.56236857,4357.4,4357.3,5.55781315]
[1757419807060,3.2078,4357.9,4357.3,5.55781315]
[1757419807259,0.56232221,4357.8,4357.7,0.7365]
[1757419807459,0.56232221,4357.8,4357.7,1.05879781]
[1757419807653,0.56232221,4357.8,4357.7,1.09031316]
[1757419809262,0.2999,4358.3,4357.7,1.09031316]
[1757419809462,0.1954,4357.9,4357.8,1.29679781]
[1757419809656,0.75242261,4357.9,4357.8,1.32831316]
[1757419809861,0.55702261,4357.9,4357.8,1.32831316]
[1757419810062,0.75242261,4357.9,4357.8,1.32831316]
[1757419810363,0.55702261,4357.9,4357.8,1.32831316]
[1757419811160,3.2078,4358.5,4358.0,0.1236]
[1757419811362,3.2078,4358.5,4358.4,0.7365]
[1757419811562,3.2078,4358.5,4358.4,1.32831316]
[1757419811563,3.78320014,4358.5,4358.4,1.32831316]
[1757419812071,0.17,4358.9,4358.8,0.4169]
[1757419812265,0.74530189,4358.9,4358.8,1.05879781]
[1757419812663,0.74530189,4358.9,4358.8,1.09031316]
[1757419813067,0.94070189,4358.9,4358.8,1.09031316]
[1757419813363,1.43500189,4358.9,4358.8,1.32831316]
[1757419813572,0.74530189,4358.9,4358.8,1.32831316]
[1757419813866,0.17,4358.9,4358.8,1.32831316]
[1757419817273,0.17,4358.9,4358.8,5.32831316]
[1757419817660,0.17,4358.9,4358.8,5.55773316]
[1757419817866,3.2078,4359.7,4359.6,0.4063]
[1757419818167,3.78025958,4359.7,4359.6,1.28969781]